bitfinex/quotes_ETHUSD_20220119
["timestamp","ask_amount","ask_price","bid_price","bid_amount"]
[1642557095112,0.00113685,3169.7,3169.4,2.68612726]
[1642557095914,0.00113685,3169.7,3169.4,4.26990045]
[1642557096113,0.00113685,3169.7,3169.5,1.58377319]
[1642557096357,0.00113685,3169.7,3169.6,8.28762892]
[1642557097761,0.00113685,3169.7,3169.6,2.93762892]
[1642557099164,0.00113685,3169.7,3169.6,5.61665758]
[1642557100607,0.00113685,3169.7,3169.6,2.67902866]
[1642557100811,0.00113685,3169.7,3169.4,2.67902866]
[1642557101413,1.5782843,3169.6,3169.4,2.67902866]
[1642557101612,1.8782843,3169.6,3169.4,2.67902866]
[1642557106665,0.3,3169.5,3169.4,2.67902866]
[1642557109912,2.8782843,3169.6,3169.4,2.67902866]
[1642557110413,1.8782843,3169.6,3169.4,2.67902866]
[1642557111660,1.5782843,3169.6,3169.4,2.67902866]
[1642557111963,0.7891743,3169.6,3169.5,5.07574393]
[1642557112162,0.7891743,3169.6,3169.5,5.25477259]
[1642557112767,0.7891743,3169.6,3169.5,2.67902866]
[1642557112969,1.0891743,3169.6,3169.4,2.67902866]
[1642557114368,0.7891743,3169.6,3169.4,2.67902866]
[1642557114569,1.0891743,3169.6,3169.4,2.67902866]
[1642557115004,1.0891743,3169.6,3169.5,2.57141666]
[1642557115205,1.0891743,3169.6,3169.5,5.25044532]
[1642557115606,1.0891743,3169.6,3169.5,2.67902866]
[1642557116207,1.0891743,3169.6,3169.4,2.67902866]
[1642557122506,1.8782443,3169.6,3169.4,2.67902866]
[1642557123108,1.8782443,3169.6,3169.4,5.23908523]
[1642557123407,1.8782443,3169.6,3169.5,2.67902866]
[1642557124011,1.8782443,3169.6,3169.3,2.97039738]
[1642557124012,1.8782443,3169.6,3169.4,2.67902866]
[1642557124814,1.87577466,3169.6,3169.4,2.67902866]
[1642557127562,2.69817098,3169.6,3169.4,2.67902866]
[1642557127962,2.66501466,3169.6,3169.4,2.67902866]
[1642557128566,2.70079879,3169.6,3169.4,2.67902866]
[1642557129171,1.87577466,3169.6,3169.4,2.67902866]
[1642557142659,1.90989156,3169.6,3169.4,2.67902866]
[1642557142861,0.455,3169.5,3169.3,1.38662419]
[1642557143059,3.4572782,3169.4,3169.3,1.38662419]
[1642557143259,3.94775121,3169.4,3169.3,1.38662419]
[1642557143457,3.94775121,3169.4,3169.3,1.38776104]
[1642557143458,4.94775121,3169.4,3169.3,1.38776104]
[1642557147209,3.94775121,3169.4,3169.3,1.38776104]
[1642557148612,3.9122782,3169.4,3169.3,1.38776104]
[1642557154623,1.54433,3169.4,3169.3,1.38776104]
[1642557157569,0.78670466,3169.6,3169.3,7.30556584]
[1642557157771,0.789016,3169.8,3169.4,3.06122728]
[1642557157970,1.2,3170.0,3169.4,3.06122728]
[1642557157971,1.2,3170.0,3169.5,1.58377319]
[1642557158170,1.2,3170.0,3169.6,4.60985407]
[1642557158470,0.0022737,3169.9,3169.6,1.58377319]
[1642557158870,0.00170527,3169.8,3169.6,1.58377319]
[1642557159270,0.00113685,3169.7,3169.6,1.58377319]
[1642557159675,0.00113685,3169.7,3169.6,5.53377319]
[1642557160110,0.00113685,3169.7,3169.6,8.53213894]
[1642557162813,0.00113685,3169.7,3169.6,11.21124349]
[1642557163214,0.00113685,3169.7,3169.6,7.26124349]
[1642557163415,0.00113685,3169.7,3169.6,2.67910455]
[1642557163615,0.00113685,3169.7,3169.5,2.67910455]
[1642557164068,0.00113685,3169.7,3169.6,2.67910455]
[1642557164465,0.00113685,3169.7,3169.5,2.67910455]
[1642557164666,0.00113685,3169.7,3169.6,2.67910455]
[1642557164870,0.00113685,3169.7,3169.5,2.67910455]
[1642557165666,0.79023315,3169.7,3169.5,2.67910455]
[1642557165865,0.79023315,3169.7,3169.6,2.67910455]
[1642557166066,0.79023315,3169.7,3169.3,2.97153423]
[1642557166067,0.79023315,3169.7,3169.4,2.67910455]
[1642557166270,0.79023315,3169.7,3169.5,2.67910455]
[1642557166466,0.79023315,3169.7,3169.6,2.67910455]
[1642557167270,0.78911,3169.6,3169.3,3.9420116]
[1642557167512,0.78911,3169.6,3169.3,1.38776104]
[1642557168313,1.57842,3169.5,3169.3,1.38776104]
[1642557168510,2.3676276,3169.5,3169.3,1.38776104]
[1642557170716,3.08194538,3169.4,3169.3,1.38776104]
[1642557170915,3.38194538,3169.4,3169.3,1.38776104]
[1642557171115,4.38194538,3169.4,3169.3,1.38776104]
[1642557171759,4.38194538,3169.4,3169.3,0.00113685]
[1642557172159,5.17130538,3169.4,3168.9,0.00341054]
[1642557172361,1.57877,3169.2,3168.8,0.00397896]
[1642557172559,6.17817455,3169.2,3168.7,0.00454739]
[1642557172958,6.2262271,3169.2,3168.6,1.588889]
[1642557173163,6.2262271,3169.2,3168.6,0.00511581]
[1642557173363,1.2443763,3169.1,3168.7,0.00454739]
[1642557173564,0.3,3169.0,3168.6,0.00511581]
[1642557173763,0.78937,3168.8,3168.6,0.00511581]
[1642557173969,1.08937,3168.8,3168.6,0.00511581]
[1642557174164,1.08937,3168.8,3168.6,1.588889]
[1642557174564,1.08937,3168.8,3168.7,0.00454739]
[1642557175010,1.08937,3168.8,3168.6,0.00511581]
[1642557175618,1.8787194,3168.8,3168.6,1.588889]
[1642557176018,1.8787194,3168.8,3168.7,2.75454739]
[1642557176618,1.8787194,3168.8,3168.7,0.00454739]
[1642557178620,1.8787194,3168.8,3168.6,1.588889]
[1642557178867,1.8787194,3168.8,3168.7,2.50454739]
[1642557182272,1.8787194,3168.8,3168.7,6.7681223]
[1642557182912,0.7893494,3168.8,3168.7,6.7681223]
[1642557183111,1.57863,3169.0,3168.7,6.7681223]
[1642557183112,1.5784766,3169.0,3168.7,6.7681223]
[1642557183315,1.5784766,3169.0,3168.8,2.67980172]
[1642557183513,1.5784766,3169.0,3168.8,4.26755387]
[1642557183711,0.455,3169.1,3168.9,2.68321226]
[1642557183914,0.455,3169.1,3169.0,2.67980172]
[1642557184115,0.755,3169.1,3169.0,0.00284212]
[1642557184315,0.3,3169.1,3169.0,4.80284212]
[1642557184515,1.5784,3169.5,3169.2,1.34353683]
[1642557184715,0.7891646,3169.3,3169.2,1.34353683]
[1642557184916,0.79131348,3169.7,3169.2,1.34353683]
[1642557185115,0.79131348,3169.7,3169.2,1.3452421]
[1642557185715,0.7890904,3169.6,3169.2,1.3452421]
[1642557186114,0.7890904,3169.6,3169.2,2.71376288]
[1642557186364,1.5781904,3169.6,3169.2,2.71376288]
[1642557186962,1.8781904,3169.6,3169.2,2.71376288]
[1642557188369,1.8781904,3169.6,3169.2,1.3452421]
[1642557191513,1.0891,3169.6,3169.2,1.3452421]
[1642557193014,0.7891,3169.6,3169.2,1.3452421]
[1642557193419,0.7891,3169.6,3169.2,0.00170527]
[1642557193866,0.7891,3169.6,3169.1,0.00227369]
[1642557194266,0.7891,3169.6,3169.0,0.00284212]
[1642557194966,0.7891,3169.6,3169.0,1.12378113]
[1642557195168,1.5783703,3169.5,3169.0,1.12378113]
[1642557195367,0.78919,3169.4,3169.1,0.00227369]
[1642557195767,4.13109766,3169.4,3169.1,0.00227369]
[1642557195967,0.455,3169.3,3169.0,0.00284212]
[1642557196175,0.755,3169.3,3168.9,0.00341054]
[1642557196868,0.78944,3169.1,3168.7,0.00454739]
[1642557197068,3.7463106,3169.0,3168.7,0.00454739]
[1642557197267,3.7463106,3169.0,3168.4,1.58377319]
[1642557197268,3.7463106,3169.0,3168.6,0.00511581]
[1642557197715,3.7463106,3169.0,3168.5,0.00568423]
[1642557197918,1.57881,3168.8,3168.4,1.59002585]
[1642557198118,0.78941,3168.7,3168.5,0.00568423]
[1642557198318,3.0086069,3168.6,3168.5,0.00568423]
[1642557198520,0.78941,3168.7,3168.4,0.00625266]
[1642557198917,0.78941,3168.7,3168.3,0.00682108]
[1642557199118,3.82253191,3168.7,3168.3,0.00682108]
[1642557199317,0.78941,3168.7,3168.2,1.59116269]
[1642557199518,1.57885,3168.7,3168.3,0.00682108]
[1642557199718,3.157716,3168.7,3168.4,2.68016884]
[1642557199917,1.57894,3168.6,3168.4,2.68016884]
[1642557200120,1.87894,3168.6,3168.5,2.68585307]
[1642557200921,1.57894,3168.6,3168.5,2.68585307]
[1642557202389,2.03394,3168.6,3168.5,2.68585307]
[1642557203092,2.33394,3168.6,3168.5,2.68585307]
[1642557203391,5.3251366,3168.6,3168.5,2.68585307]
[1642557203591,2.63719109,3168.6,3168.5,2.68585307]
[1642557203791,0.455,3168.6,3168.5,2.68585307]
[1642557207318,0.76941386,3168.6,3168.5,2.68585307]
[1642557207721,1.06941386,3168.6,3168.5,2.68585307]
[1642557209870,0.76941386,3168.6,3168.5,2.68585307]
[1642557210175,0.76941386,3168.6,3167.9,1.58377319]
[1642557210176,2.9,3168.5,3167.9,1.58377319]
[1642557210374,0.7896,3168.2,3167.9,1.58377319]
[1642557210572,4.11506153,3168.2,3168.0,0.00284212]
[1642557210772,3.44780628,3168.1,3168.0,0.00284212]
[1642557210971,0.455,3168.1,3167.9,0.00341054]
[1642557211173,3.4283036,3168.1,3167.8,0.00397897]
[1642557211372,0.455,3168.1,3167.8,0.00397897]
[1642557212173,0.455,3168.1,3167.7,0.00454739]
[1642557212614,0.78963,3168.0,3167.7,0.00454739]
[1642557212815,1.57926,3168.0,3167.7,1.58832058]
[1642557213013,1.87926,3168.0,3167.7,0.00454739]
[1642557213214,2.33426,3168.0,3167.8,0.00397897]
[1642557213414,2.33426,3168.0,3167.7,0.00454739]
[1642557213918,0.78967,3167.9,3167.7,0.00454739]
[1642557214118,0.78967,3167.8,3167.7,0.00454739]
[1642557214325,1.08967,3167.8,3167.7,0.00454739]
[1642557214719,1.08967,3167.8,3167.6,1.588889]
[1642557214918,1.08967,3167.8,3167.7,0.00454739]
[1642557215619,1.8792984,3167.8,3167.7,0.00454739]
[1642557216020,0.3552935,3167.7,3167.6,0.00511581]
[1642557216261,0.3552935,3167.7,3167.6,1.588889]
[1642557217263,1.8792984,3167.8,3167.7,3.360587]
[1642557217663,1.8792984,3167.8,3167.7,3.36513439]
[1642557218266,1.8792984,3167.8,3167.7,4.95410491]
[1642557218467,1.8792984,3167.8,3167.7,2.30410491]
[1642557219671,0.3,3167.8,3167.7,2.30410491]
[1642557220138,3.1235487,3168.0,3167.7,2.30410491]
[1642557220539,3.1235487,3168.0,3167.8,0.00397897]
[1642557222539,0.35267467,3167.9,3167.8,0.00397897]
[1642557222939,1.93188467,3167.9,3167.8,0.00397897]
[1642557223139,1.14226467,3167.9,3167.8,0.00397897]
[1642557230417,1.14226467,3167.9,3167.8,2.68459535]
[1642557233668,0.35267467,3167.9,3167.8,2.68459535]
[1642557237622,0.35267467,3167.9,3167.8,4.27356587]
[1642557239089,0.35267467,3167.9,3167.8,2.68459535]
[1642557244322,1.14220467,3167.9,3167.8,2.68459535]
[1642557244524,1.14220467,3167.9,3167.8,4.27864279]
[1642557244723,1.14220467,3167.9,3167.8,2.68459535]
[1642557244922,0.35267467,3167.9,3167.8,5.06025513]
[1642557246123,0.35267467,3167.9,3167.8,2.68459535]
[1642557246370,0.65267467,3167.9,3167.8,4.27899253]
[1642557246971,1.44222467,3167.9,3167.8,4.27899253]
[1642557247373,1.44222467,3167.9,3167.8,2.68459535]
[1642557247572,0.65267467,3167.9,3167.8,2.68459535]
[1642557247772,0.65267467,3167.9,3167.8,2.37963875]
[1642557247972,0.65267467,3167.9,3167.8,5.06025513]
[1642557249174,0.65267467,3167.9,3167.8,2.68459535]
[1642557250017,0.65267467,3167.9,3167.8,5.07452873]
[1642557250225,0.65267467,3167.9,3167.8,2.68459535]
[1642557250422,0.65267467,3167.9,3167.8,5.07054976]
[1642557250623,0.65267467,3167.9,3167.8,2.68061638]
[1642557251424,1.44220467,3167.9,3167.8,2.68061638]
[1642557252225,2.23177467,3167.9,3167.8,2.68061638]
[1642557252628,0.65267467,3167.9,3167.8,2.68061638]
[1642557252826,0.65267467,3167.9,3167.7,5.78113676]
[1642557253026,0.65267467,3167.9,3167.8,2.68061638]
[1642557254267,1.44220467,3167.9,3167.8,2.68061638]
[1642557255269,0.65267467,3167.9,3167.8,5.07054976]
[1642557255469,0.65267467,3167.9,3167.8,2.68061638]
[1642557256871,0.65267467,3167.9,3167.8,5.07054976]
[1642557260922,0.35267467,3167.9,3167.8,7.66072379]
[1642557261120,0.35267467,3167.9,3167.8,5.27079041]
[1642557261367,0.7894858,3168.1,3167.9,5.60534934]
[1642557261562,0.7894858,3168.1,3168.0,7.69221645]
[1642557261764,0.7894858,3168.1,3168.0,5.3090344]
[1642557261963,1.28063176,3168.5,3168.0,7.69549366]
[1642557261964,0.789385,3168.2,3168.0,7.69549366]
[1642557262168,0.789385,3168.2,3168.1,5.26457505]
[1642557262368,1.089385,3168.2,3168.1,7.65330801]
[1642557263570,1.089385,3168.2,3168.1,2.68289008]
[1642557263770,1.089385,3168.2,3168.1,0.0022737]
[1642557263976,1.878835,3168.2,3168.1,0.0022737]
[1642557264171,1.878835,3168.2,3168.1,1.59339155]
[1642557264471,1.878835,3168.2,3168.1,0.0022737]
[1642557264873,1.878835,3168.2,3168.1,1.59339155]
[1642557266719,1.878835,3168.2,3168.1,2.68289008]
[1642557267119,1.878835,3168.2,3168.1,0.0022737]
[1642557267920,1.878835,3168.2,3168.1,2.68289008]
[1642557268324,1.91672296,3168.2,3168.1,2.68289008]
[1642557268522,1.91672296,3168.2,3168.1,0.0022737]
[1642557268965,1.91672296,3168.2,3168.1,1.59339155]
[1642557269169,1.91672296,3168.2,3168.1,2.68289008]
[1642557269365,1.91672296,3168.2,3168.1,4.27400793]
[1642557269566,1.91672296,3168.2,3168.1,2.68289008]
[1642557269766,1.91672296,3168.2,3168.1,0.0022737]
[1642557270567,1.91672296,3168.2,3168.1,2.68289008]
[1642557270768,1.91672296,3168.2,3168.1,0.0022737]
[1642557271971,1.878835,3168.2,3168.1,0.0022737]
[1642557272171,0.3,3168.2,3168.1,0.0022737]
[1642557272614,0.3,3168.3,3168.1,1.59339155]
[1642557272814,2.09497398,3168.4,3168.1,1.59339155]
[1642557273017,0.3,3168.4,3168.3,3.99111785]
[1642557273414,0.61441386,3168.6,3168.3,5.08175323]
[1642557273614,0.61441386,3168.6,3168.4,2.68061638]
[1642557273818,0.61441386,3168.6,3168.3,2.68175323]
[1642557274018,1.40378636,3168.6,3168.4,2.68061638]
[1642557274221,1.43696926,3168.6,3168.4,2.68061638]
[1642557274423,1.43696926,3168.6,3168.5,2.68061638]
[1642557274619,1.43696926,3168.6,3168.3,0.00113685]
[1642557274620,2.22643926,3168.6,3168.3,0.00113685]
[1642557274920,1.0893725,3168.6,3168.3,4.14051823]
[1642557275121,1.0893725,3168.6,3168.4,2.68061638]
[1642557275321,0.7893725,3168.6,3168.4,2.68061638]
[1642557275522,0.3,3168.5,3168.3,1.5922547]
[1642557275920,0.3,3168.5,3168.3,2.77965305]
[1642557276125,0.3,3168.5,3168.3,1.5922547]
[1642557276362,1.8789588,3168.5,3168.3,1.5922547]
[1642557276663,2.3684691,3169.1,3168.5,5.6]
[1642557276868,3.2369,3169.4,3168.5,5.6]
[1642557276869,5.1528,3169.7,3168.6,4.60565939]
[1642557277067,5.1528,3169.7,3168.7,5.6]
[1642557277068,0.00170527,3168.8,3168.7,5.6]
[1642557277264,0.00170527,3168.8,3168.7,12.0634608]
[1642557277662,1.2,3170.0,3168.8,5.60341054]
[1642557277862,1.2,3170.0,3168.9,5.39069579]
[1642557278068,1.2,3170.0,3169.1,0.01201032]
[1642557278069,0.00454738,3169.6,3169.1,0.01201032]
[1642557278266,0.00454738,3169.6,3169.2,0.92715997]
[1642557278469,1.2,3170.0,3169.3,3.01454154]
[1642557278470,0.00397896,3169.5,3169.3,3.01454154]
[1642557278868,1.2,3170.0,3169.3,3.01454154]
[1642557278869,0.00341054,3169.4,3169.3,3.01454154]
[1642557279269,0.00341054,3169.4,3169.3,9.40342154]
[1642557280319,0.00341054,3169.4,3169.3,9.56098154]
[1642557285294,0.00341054,3169.4,3169.3,6.54644]
[1642557287400,0.00341054,3169.4,3169.3,9.71834322]
[1642557288224,0.00341054,3169.4,3169.3,5.6]
[1642557290225,0.00341054,3169.4,3169.3,5.75756]
[1642557290425,0.00341054,3169.4,3169.3,8.83643091]
[1642557290628,0.00341054,3169.4,3169.3,11.51583244]
[1642557292777,1.2,3170.0,3169.4,7.97342198]
[1642557292973,1.2,3170.0,3169.5,5.72118023]
[1642557293173,0.00284212,3169.9,3169.6,2.67940153]
[1642557293377,0.00284212,3169.9,3169.8,5.75756]
[1642557293575,1.2,3170.0,3169.8,11.81350334]
[1642557293773,1.2,3170.0,3169.9,13.98107384]
[1642557294178,1.20341054,3170.0,3169.9,13.98107384]
[1642557294679,1.20341054,3170.0,3169.9,14.13863384]
[1642557296730,1.20341054,3170.0,3169.9,15.71598384]
[1642557302929,1.20341054,3170.0,3169.9,19.73422484]
[1642557303133,1.20341054,3170.0,3169.9,19.73422188]
[1642557303733,0.3748942,3171.1,3170.2,0.78865]
[1642557303932,0.3748942,3171.1,3170.3,7.24499963]
[1642557304133,0.00568423,3171.0,3170.4,2.67940153]
[1642557304334,0.00568423,3171.0,3170.5,2.52235374]
[1642557304533,0.00568423,3171.0,3170.4,2.67940153]
[1642557304534,0.00511581,3170.9,3170.4,2.56986049]
[1642557304941,0.00454739,3170.8,3170.4,2.56986049]
[1642557305134,0.00454739,3170.8,3170.5,1.44584689]
[1642557305335,0.00397896,3170.7,3170.5,1.44584689]
[1642557305740,0.00341054,3170.6,3170.5,1.44584689]
[1642557305937,0.00341054,3170.6,3170.5,4.09584689]
[1642557306137,0.00341054,3170.6,3170.1,4.9144]
[1642557306386,0.00341054,3170.6,3170.2,2.67889981]
[1642557306591,0.00284212,3170.5,3170.2,2.67889981]
[1642557306988,0.00227369,3170.4,3170.2,2.67889981]
[1642557307389,0.00170527,3170.3,3170.2,2.67889981]
[1642557307992,0.00170527,3170.3,3170.2,5.92889981]
[1642557308295,0.00170527,3170.3,3170.2,2.67889981]
[1642557308696,0.00170527,3170.3,3170.2,2.67901702]
[1642557308891,0.00170527,3170.3,3170.1,4.9144]
[1642557309190,1.57786,3170.6,3170.1,3.7782]
[1642557309191,0.00113685,3170.2,3170.1,3.7782]
[1642557309390,0.00113685,3170.2,3170.1,6.45727665]
[1642557310631,0.00113685,3170.2,3170.1,8.98656039]
[1642557310834,0.00113685,3170.2,3170.1,8.99142424]
[1642557311631,0.00113685,3170.2,3170.1,9.78012424]
[1642557312232,0.00113685,3170.2,3170.1,9.93768424]
[1642557314480,0.3748942,3171.1,3170.3,0.0022737]
[1642557314680,0.3748942,3171.1,3170.3,7.39691367]
[1642557314880,0.3748942,3171.1,3170.4,2.67907665]
[1642557314881,0.00454738,3171.0,3170.4,2.67907665]
[1642557315081,0.00454738,3171.0,3170.5,3.70119736]
[1642557315281,0.00397896,3170.9,3170.6,2.67907665]
[1642557315481,0.00397896,3170.9,3170.8,6.91857639]
[1642557315679,0.3,3171.3,3170.8,6.91857639]
[1642557315680,0.3,3171.3,3171.2,1.5503958]
[1642557315881,1.1801,3171.8,3171.2,4.1781481]
[1642557316084,1.6,3171.8,3171.2,1.5503958]
[1642557316281,1.6,3171.8,3171.0,2.79932227]
[1642557316482,1.6,3171.8,3170.8,1.31857639]
[1642557316483,0.7886411,3171.6,3170.8,1.31857639]
[1642557316681,0.7886411,3171.6,3170.9,2.67850554]
[1642557316883,0.0073895,3171.5,3170.9,2.67850554]
[1642557317282,0.00682108,3171.4,3170.9,2.67850554]
[1642557317524,0.00682108,3171.4,3170.9,5.21966056]
[1642557317722,0.00625265,3171.3,3171.0,2.67850554]
[1642557318022,0.00568423,3171.2,3171.0,2.67850554]
[1642557318427,0.00511581,3171.1,3171.0,2.67850554]
[1642557318826,0.00795792,3171.1,3171.0,5.12850554]
[1642557319026,0.00795792,3171.1,3171.0,7.66310959]
[1642557319526,0.00795792,3171.1,3171.0,2.67850554]
[1642557319727,0.00795792,3171.1,3170.9,2.67850554]
[1642557320126,0.00454738,3171.0,3170.9,2.67850554]
[1642557321778,0.00454738,3171.0,3170.9,5.52850554]
[1642557322381,0.00454738,3171.0,3170.9,8.10283543]
[1642557322581,0.00454738,3171.0,3170.9,5.52850554]
[1642557322780,0.00454738,3171.0,3170.9,2.67850554]
[1642557323786,0.00454738,3171.0,3170.9,8.37085353]
[1642557323982,0.00454738,3171.0,3170.9,8.40956448]
[1642557325022,0.00454738,3171.0,3170.9,5.82850554]
[1642557335833,0.00454738,3171.0,3170.9,2.67850554]
[1642557336678,0.00454738,3171.0,3170.9,7.17850554]
[1642557337080,0.00454738,3171.0,3170.9,9.55843039]
[1642557337679,0.00454738,3171.0,3170.9,7.17850554]
[1642557338080,0.00454738,3171.0,3170.9,2.67850554]
[1642557341630,0.00454738,3171.0,3170.9,5.12850554]
[1642557342035,0.00454738,3171.0,3170.9,2.67850554]
[1642557342730,0.00454738,3171.0,3170.9,4.97850554]
[1642557347283,0.00454738,3171.0,3170.9,2.67850554]
[1642557347530,0.00454738,3171.0,3170.9,4.97850554]
[1642557348529,0.00454738,3171.0,3170.9,7.67850554]
[1642557350532,1.1693,3172.1,3171.3,1.57706]
[1642557350742,3.7494,3172.3,3171.9,0.7884847]
[1642557351040,0.30618036,3172.6,3172.0,5.23254126]
[1642557351303,0.30618036,3172.6,3172.1,2.67850554]
[1642557351487,0.01193689,3172.3,3172.2,2.67850554]
[1642557351885,0.01193689,3172.3,3172.2,3.9776936]
[1642557352186,0.01193689,3172.3,3172.2,7.84730007]
[1642557352586,0.01193689,3172.3,3172.2,7.87955839]
[1642557352783,0.01193689,3172.3,3172.2,5.28747717]
[1642557353886,0.01193689,3172.3,3172.2,3.98828911]
[1642557355333,0.01193689,3172.3,3172.2,2.67850554]
[1642557355732,0.01193689,3172.3,3171.6,3.93199997]
[1642557355933,0.01193689,3172.3,3171.7,2.67772184]
[1642557356134,0.01136846,3172.2,3171.7,2.67772184]
[1642557356333,0.01136846,3172.2,3171.7,3.86859302]
[1642557356533,0.78856,3172.0,3171.8,2.67772184]
[1642557356733,0.01080004,3172.1,3171.8,3.46622994]
[1642557356938,1.0,3172.5,3171.9,2.67772184]
[1642557357135,0.30618036,3172.6,3171.9,2.67772184]
[1642557357335,0.01307374,3172.5,3171.9,2.67772184]
[1642557357538,0.78851,3172.3,3171.9,2.67772184]
[1642557357936,0.01136846,3172.2,3171.8,2.67772184]
[1642557358140,0.01136846,3172.2,3171.9,2.67772184]
[1642557358338,0.01080004,3172.1,3172.0,2.67772184]
[1642557358637,0.79934004,3172.1,3172.0,2.67772184]
[1642557358889,0.79934004,3172.1,3171.8,2.67772184]
[1642557359091,0.79934004,3172.1,3171.9,2.67772184]
[1642557359290,0.01023162,3172.0,3171.6,3.93199997]
[1642557359690,0.00966319,3171.9,3171.6,3.93199997]
[1642557360098,0.00909477,3171.8,3171.6,3.93199997]
[1642557360591,0.00852635,3171.7,3171.6,3.93199997]
[1642557360992,0.01193689,3171.7,3171.6,0.13819997]
[1642557361393,0.01193689,3171.7,3171.6,3.73819997]
[1642557361992,0.01193689,3171.7,3171.6,6.25932884]
[1642557367885,0.01193689,3171.7,3171.6,3.73819997]
[1642557369588,0.01193689,3171.7,3171.6,6.27186584]
[1642557371233,0.01193689,3171.7,3171.6,8.27186584]
[1642557371933,0.30618036,3172.6,3172.0,0.788343]
[1642557372133,0.30618036,3172.6,3172.4,1.3180934]
[1642557372334,0.00113685,3172.5,3172.4,1.3180934]
[1642557372937,0.00113685,3172.5,3172.4,3.44117116]
[1642557374381,0.00113685,3172.5,3172.4,6.11866298]
[1642557375582,0.00113685,3172.5,3172.4,4.78392822]
[1642557375784,0.00113685,3172.5,3172.4,2.1064364]
[1642557376585,0.00113685,3172.5,3172.4,3.55971694]
[1642557377389,0.00113685,3172.5,3172.4,6.23719822]
[1642557379038,0.00113685,3172.5,3172.4,3.55971694]
[1642557380640,0.00113685,3172.5,3172.4,6.23716974]
[1642557381041,0.00113685,3172.5,3172.4,4.7838892]
[1642557381294,0.00113685,3172.5,3172.4,3.4657958]
[1642557396479,0.00113685,3172.5,3172.4,6.09996364]
[1642557396679,0.00113685,3172.5,3172.4,6.04962281]
[1642557397883,0.00113685,3172.5,3172.4,6.6157958]
[1642557400444,0.00113685,3172.5,3172.4,9.14313501]
[1642557401244,0.00113685,3172.5,3172.4,6.6157958]
[1642557402253,0.7883,3173.1,3172.4,6.6157958]
[1642557402551,0.00397896,3173.0,3172.6,0.7882771]
[1642557402850,0.00341054,3172.9,3172.7,2.6774528]
[1642557403250,0.00284212,3172.8,3172.7,2.6774528]
[1642557408935,0.00284212,3172.8,3172.4,2.6774528]
[1642557409136,0.00284212,3172.8,3172.5,2.6774528]
[1642557409337,0.00284212,3172.8,3172.3,1.89017128]
[1642557409338,0.00227369,3172.7,3172.6,2.6774528]
[1642557409737,0.00284212,3172.7,3172.6,2.6774528]
[1642557410040,0.00284212,3172.7,3172.4,2.6774528]
[1642557410237,0.00284212,3172.7,3172.5,3.4657794]
[1642557410439,0.78832,3172.9,3172.6,2.6774528]
[1642557410839,0.00284212,3172.8,3172.6,2.6774528]
[1642557411287,0.00227369,3172.7,3172.6,2.6774528]
[1642557412285,0.00227369,3172.7,3172.5,2.6774528]
[1642557412488,0.00227369,3172.7,3172.6,2.6774528]
[1642557412691,3.25841954,3173.3,3172.6,2.6774528]
[1642557412887,3.25841954,3173.3,3172.7,2.6774528]
[1642557413088,0.00511581,3173.2,3172.8,2.6774528]
[1642557413289,0.00511581,3173.2,3172.9,2.6774528]
[1642557413488,0.00454739,3173.1,3172.4,1.5765386]
[1642557413689,0.00454739,3173.1,3172.5,2.67739653]
[1642557413690,0.78833,3172.9,3172.5,2.67739653]
[1642557414090,0.00284212,3172.8,3172.5,2.67739653]
[1642557414490,0.00227369,3172.7,3172.5,2.67739653]
[1642557414891,0.00170527,3172.6,3172.5,2.67739653]
[1642557415354,0.00284212,3172.6,3172.5,2.67739653]
[1642557416154,2.94397275,3172.6,3172.5,2.67739653]
[1642557416354,0.00284212,3172.6,3172.5,2.67739653]
[1642557416553,1.45784212,3172.6,3172.0,2.67739653]
[1642557416754,0.78853,3172.5,3172.1,2.67739653]
[1642557416960,1.54466685,3172.5,3172.2,2.67739653]
[1642557417155,2.84466685,3172.5,3172.3,2.67739653]
[1642557417458,1.57709,3172.4,3171.9,3.0456]
[1642557417656,2.57709,3172.4,3171.9,3.0456]
[1642557417859,2.57709,3172.4,3172.0,0.00170527]
[1642557418656,2.57709,3172.4,3171.8,1.44383751]
[1642557418894,2.57709,3172.4,3171.9,0.0022737]
[1642557419293,5.5300234,3172.4,3171.8,0.00284212]
[1642557419896,5.55993158,3172.4,3171.8,0.00284212]
[1642557420098,3.43784158,3172.3,3171.8,0.00284212]
[1642557420298,0.78865,3172.2,3171.8,0.00284212]
[1642557420501,3.0323,3172.2,3171.8,0.00284212]
[1642557420696,0.3,3172.1,3171.8,0.00284212]
[1642557420898,1.3,3172.1,3171.8,0.00284212]
[1642557421098,0.3,3172.0,3171.7,0.00341054]
[1642557421300,0.3,3172.0,3171.7,1.57476131]
[1642557421498,1.055,3172.2,3171.7,1.57476131]
[1642557421697,1.055,3172.2,3171.8,0.00284212]
[1642557422299,0.3,3172.2,3171.8,0.00284212]
[1642557422540,0.78847,3172.3,3171.8,2.88945314]
[1642557422938,0.78847,3172.3,3171.9,0.0022737]
[1642557423439,1.6,3172.4,3171.9,0.0022737]
[1642557423639,0.00113685,3172.5,3171.9,1.57362447]
[1642557423841,0.00113685,3172.5,3172.0,0.78838]
[1642557424041,0.00113685,3172.5,3172.0,2.35973077]
[1642557424240,0.00113685,3172.5,3172.1,0.00113685]
[1642557425243,0.00113685,3172.5,3171.9,1.57362447]
[1642557425753,0.78955685,3172.5,3171.9,0.0022737]
[1642557425944,1.08955685,3172.5,3171.9,0.0022737]
[1642557426146,0.60113685,3172.5,3171.9,0.0022737]
[1642557426601,0.30113685,3172.5,3171.9,0.0022737]
[1642557427498,0.7885,3172.3,3171.9,0.0022737]
[1642557427699,0.00113685,3172.5,3171.9,0.0022737]
[1642557428908,0.78954685,3172.5,3171.9,0.0022737]
[1642557429907,0.78954685,3172.5,3171.9,1.57362447]
[1642557430135,0.78954685,3172.5,3171.9,0.0022737]
[1642557431138,0.78954685,3172.5,3171.9,1.57362447]
[1642557431339,1.47444206,3172.5,3171.9,1.57362447]
[1642557431737,1.17444206,3172.5,3171.9,0.0022737]
[1642557431938,1.17444206,3172.5,3171.9,1.57362447]
[1642557432339,1.17444206,3172.5,3171.9,0.0022737]
[1642557432539,1.17444206,3172.5,3171.9,2.67982334]
[1642557433797,1.47444206,3172.5,3171.9,2.67982334]
[1642557433999,0.78848,3172.3,3171.9,2.67982334]
[1642557434199,0.00113685,3172.5,3171.9,2.67982334]
[1642557434399,0.00113685,3172.5,3172.0,4.24890041]
[1642557434598,0.00113685,3172.5,3172.1,2.67754964]
[1642557434798,0.00113685,3172.5,3172.2,2.67754964]
[1642557434998,0.00113685,3172.5,3172.3,2.67754964]
[1642557435199,0.00113685,3172.5,3172.4,6.22754964]
[1642557435397,0.00113685,3172.5,3172.4,8.72431711]
[1642557438139,0.00113685,3172.5,3172.4,8.88187711]
[1642557438338,0.00113685,3172.5,3172.4,11.64506027]
[1642557438537,0.00113685,3172.5,3172.4,9.26890602]